bitfinex/quotes_ETHUSD_20240817
["timestamp","ask_amount","ask_price","bid_price","bid_amount"]
[1723912242937,0.619174,2617.1,2616.0,5.3112]
[1723912242938,2.3489,2616.8,2616.3,4.18156]
[1723912243137,2.3489,2616.8,2616.4,2.86647]
[1723912243337,2.3489,2616.8,2616.5,4.1814]
[1723912243661,2.3489,2616.8,2616.6,2.86629]
[1723912244439,2.3489,2616.8,2616.5,2.86642]
[1723912244844,2.3489,2616.8,2616.6,2.8663]
[1723912245047,0.97729,2617.2,2616.6,2.8663]
[1723912245048,2.3489,2617.0,2616.6,2.8663]
[1723912245244,2.3489,2617.0,2616.6,5.73256]
[1723912245447,2.3489,2617.0,2616.9,2.86598]
[1723912245864,2.3489,2617.3,2616.9,2.86598]
[1723912246048,3.374449,2617.3,2616.9,2.86598]
[1723912247413,3.374449,2617.3,2616.8,2.86608]
[1723912251838,2.3489,2617.3,2617.1,2.86571]
[1723912252147,12.25,2617.6,2617.1,2.86571]
[1723912252148,2.3489,2617.6,2617.2,2.86565]
[1723912252508,2.3489,2617.6,2617.3,2.86554]
[1723912253341,2.3489,2617.6,2617.3,2.86548]
[1723912253860,2.3489,2617.6,2617.1,5.73136]
[1723912254007,2.3489,2617.6,2617.1,2.86567]
[1723912256026,2.3489,2617.6,2617.3,2.86554]
[1723912256934,7.39,2617.7,2617.3,2.86547]
[1723912257648,7.39,2617.7,2617.5,2.86532]
[1723912258108,2.3813,2617.5,2616.5,5.1363]
[1723912258447,2.3813,2617.4,2616.9,5.73186]
[1723912258647,2.3813,2617.4,2616.9,2.86592]
[1723912258865,2.3813,2617.4,2617.0,2.86587]
[1723912259419,2.3813,2617.4,2616.9,2.86589]
[1723912259647,2.3813,2617.4,2617.0,2.86582]
[1723912261443,2.2794,2617.2,2616.7,2.86611]
[1723912261643,2.2794,2617.2,2616.8,2.86607]
[1723912262540,2.2794,2617.2,2616.7,5.73222]
[1723912263172,2.2794,2617.2,2616.7,2.86611]
[1723912263791,2.86566,2617.2,2616.7,2.86611]
[1723912263993,2.86566,2617.2,2616.5,2.86633]
[1723912263994,2.2794,2617.0,2616.5,2.86633]
[1723912264886,2.2794,2617.0,2616.3,2.86656]
[1723912265459,2.2794,2616.7,2616.1,2.86677]
[1723912265789,2.2794,2616.5,2616.1,2.86677]
[1723912265990,2.2794,2616.5,2616.1,5.73356]
[1723912266652,2.2794,2616.5,2616.2,2.86674]
[1723912266863,2.2794,2616.5,2616.0,2.86696]
[1723912267067,2.2794,2616.4,2615.8,2.86709]
[1723912267247,5.14594,2616.4,2615.7,2.86722]
[1723912267450,5.14594,2616.4,2615.8,2.86713]
[1723912267451,2.2794,2616.3,2615.8,2.86713]
[1723912268456,2.2794,2616.2,2615.7,2.86722]
[1723912268756,2.2794,2616.2,2615.7,5.73446]
[1723912268980,2.2794,2616.2,2615.7,5.73445]
[1723912269306,7.39,2616.6,2615.7,5.73445]
[1723912269307,7.39,2616.6,2616.0,2.86695]
[1723912269507,2.2794,2616.5,2616.0,2.86695]
[1723912269851,3.532967,2616.5,2616.0,2.86695]
[1723912270052,3.532967,2616.5,2616.1,2.86681]
[1723912270607,3.532967,2616.5,2616.0,2.86695]
[1723912271107,2.2794,2616.4,2615.8,2.86713]
[1723912271253,2.2794,2616.4,2616.0,2.86688]
[1723912271254,3.6583407,2616.4,2616.0,2.86688]
[1723912271696,3.6583407,2616.4,2616.0,5.73379]
[1723912271879,7.39,2616.6,2615.8,2.86715]
[1723912272088,9.6694,2616.6,2616.4,2.86652]
[1723912272283,9.6694,2616.6,2616.4,5.73299]
[1723912272453,9.6694,2616.6,2616.4,2.86647]
[1723912272671,7.39,2616.6,2616.4,2.86645]
[1723912273195,2.2794,2616.9,2616.7,2.86611]
[1723912273398,7.39,2617.1,2616.7,2.86611]
[1723912273703,0.739,2617.0,2616.7,2.86613]
[1723912274065,0.739,2617.0,2616.5,2.86635]
[1723912274066,0.739,2617.0,2616.6,2.86622]
[1723912274269,0.739,2617.0,2616.7,2.86618]
[1723912274466,7.39,2617.1,2616.7,2.86614]
[1723912276809,2.484,2617.1,2616.6,2.86631]
[1723912276977,0.534968,2617.0,2616.6,2.86631]
[1723912277175,2.484,2617.1,2616.7,2.86616]
[1723912277691,2.484,2617.1,2616.9,2.86595]
[1723912278008,2.484,2617.1,2616.2,2.86671]
[1723912278323,0.2484,2617.0,2616.7,2.86614]
[1723912278624,2.484,2617.1,2616.7,2.86614]
[1723912278963,2.484,2617.1,2616.5,2.86636]
[1723912278964,5.34978,2617.1,2616.5,2.86636]
[1723912279298,2.484,2617.0,2616.5,2.86636]
[1723912279499,2.484,2617.0,2616.3,0.55]
[1723912279500,4.93482178,2617.3,2616.6,2.86623]
[1723912279676,2.484,2617.3,2617.0,2.8658]
[1723912282603,2.484,2617.3,2616.9,2.86598]
[1723912283562,2.484,2617.3,2616.6,2.86623]
[1723912283764,5.34958,2617.3,2616.8,2.86608]
[1723912283964,2.4946,2617.1,2616.5,2.86636]
[1723912284204,2.4946,2617.0,2616.5,2.86636]
[1723912284564,2.4946,2617.0,2616.6,2.86631]
[1723912285101,2.4946,2616.8,2616.2,2.86669]
[1723912285278,5.36075,2616.8,2616.3,2.86663]
[1723912285475,5.896814,2616.8,2616.3,2.86663]
[1723912286463,3.030664,2616.8,2616.4,2.86652]
[1723912287373,0.5896654,2616.7,2616.4,2.86652]
[1723912287889,2.4946,2616.8,2616.4,2.86652]
[1723912288484,2.4946,2616.8,2616.5,2.86641]
[1723912288873,2.4946,2616.8,2616.5,2.8664]
[1723912289929,2.4946,2616.8,2616.4,2.86648]
[1723912290085,2.4946,2616.8,2616.5,2.86636]
[1723912291108,2.4946,2616.8,2616.4,2.86648]
[1723912291293,2.4946,2616.8,2616.5,2.86642]
[1723912291566,2.4946,2616.8,2616.4,2.86648]
[1723912291567,2.4946,2616.8,2616.4,2.86647]
[1723912291824,2.4946,2616.8,2616.5,2.86641]
[1723912293292,2.4946,2616.8,2616.4,2.86647]
[1723912293535,3.030647,2616.8,2616.4,5.73295]
[1723912293723,2.4946,2616.8,2616.4,5.73295]
[1723912296457,2.4946,2616.8,2616.5,2.86641]
[1723912296902,7.39,2617.1,2616.6,2.86631]
[1723912297100,2.4868,2617.0,2616.6,2.86625]
[1723912299252,2.4868,2617.0,2616.5,2.86641]
[1723912299651,2.4868,2617.0,2616.6,2.8663]
[1723912301111,2.4868,2617.0,2616.7,2.8662]
[1723912301835,2.4868,2617.0,2616.6,2.8663]
[1723912302146,2.4868,2617.0,2616.6,5.73256]
[1723912302340,2.4868,2617.0,2616.6,2.86626]
[1723912303319,2.4868,2617.0,2616.6,5.73251]
[1723912303521,2.4868,2617.0,2616.6,2.86625]
[1723912303716,7.39,2617.1,2616.9,2.86598]
[1723912303917,7.39,2617.1,2617.0,2.86587]
[1723912304327,2.3889,2617.5,2617.2,2.86558]
[1723912304553,2.3889,2617.5,2617.3,2.86552]
[1723912304735,2.914302,2617.5,2617.3,2.86552]
[1723912304936,2.3889,2617.5,2617.2,2.86558]
[1723912305134,2.3889,2617.5,2617.3,2.86548]
[1723912305653,2.3889,2617.5,2617.4,2.86543]
[1723912306030,2.3889,2617.5,2617.3,2.86548]
[1723912307035,2.62779,2617.5,2617.1,2.86568]
[1723912310834,2.3889,2617.5,2616.8,2.86603]
[1723912311037,2.3889,2617.5,2617.4,2.86543]
[1723912312639,12.64379,2617.9,2617.4,2.86543]
[1723912312873,1.51230841,2617.8,2617.4,2.86543]
[1723912314579,2.3889,2617.7,2617.3,2.86553]
[1723912314879,4.09100584,2617.7,2617.3,2.86553]
[1723912316155,4.09100584,2617.7,2617.4,2.86542]
[1723912316355,2.3889,2617.7,2617.4,2.86542]
[1723912316656,2.3889,2617.7,2617.3,2.86554]
[1723912317997,2.3889,2617.7,2617.3,2.86549]
[1723912318202,9.76,2617.9,2617.5,2.86531]
[1723912318363,12.49722139,2617.9,2617.5,2.86531]
[1723912318765,15.36211139,2617.9,2617.4,2.86542]
[1723912319002,1.53621014,2617.8,2617.4,2.86542]
[1723912322908,1.53621014,2617.8,2617.3,2.86553]
[1723912322909,4.40121014,2617.8,2617.3,2.86553]
[1723912323207,2.26282715,2617.7,2617.3,2.86553]
[1723912325003,2.26282715,2617.7,2617.2,4.1796]
[1723912325204,2.4419,2617.6,2617.2,2.8656]
[1723912325365,2.4419,2617.6,2617.4,2.86537]
[1723912327108,2.4419,2617.6,2617.4,5.73075]
[1723912327276,2.4419,2617.6,2617.4,2.86537]
[1723912328884,2.4419,2617.6,2617.2,7.04512]
[1723912329187,2.68609,2617.6,2617.2,2.86555]
[1723912329985,2.68609,2617.6,2617.2,5.73111]
[1723912330184,2.68609,2617.6,2617.0,4.17979]
[1723912330379,2.68609,2617.6,2617.2,2.86565]
[1723912330580,0.55512,2617.5,2617.2,2.86565]
[1723912330781,2.68609,2617.6,2617.2,2.86565]
[1723912331189,2.68609,2617.6,2617.2,2.8656]
[1723912331779,2.68609,2617.6,2617.3,2.86554]
[1723912332025,2.4419,2617.6,2617.3,2.86554]
[1723912332317,2.4419,2617.6,2617.4,2.86543]
[1723912332482,13.11984,2617.9,2617.4,2.86543]
[1723912332682,3.885284,2617.8,2617.4,2.86543]
[1723912333383,7.39,2617.9,2617.6,2.86511]
[1723912334413,7.39,2617.9,2617.7,2.86507]
[1723912336208,7.39,2617.9,2617.6,2.86511]
[1723912336684,2.4419,2618.0,2617.6,2.86511]
[1723912337195,2.4419,2618.0,2617.2,2.86565]
[1723912337196,5.29175,2617.8,2617.2,2.86565]
[1723912337523,2.4267,2617.4,2617.0,5.73162]
[1723912337820,5.29192,2617.6,2617.1,2.86575]
[1723912338388,6.1605505,2617.6,2617.0,5.73161]
[1723912338589,6.1605505,2617.6,2617.0,5.73162]
[1723912338896,6.1605505,2617.6,2617.1,2.86576]
[1723912339986,6.1605505,2617.6,2617.1,5.73147]
[1723912340393,6.1605505,2617.6,2617.1,2.86571]
[1723912340830,6.1605505,2617.6,2617.1,5.73141]
[1723912341036,6.1605505,2617.6,2617.1,2.8657]
[1723912342997,0.66897255,2617.5,2617.1,2.8657]
[1723912343840,0.66897255,2617.5,2616.7,2.4056]
[1723912343841,2.311,2617.4,2616.7,5.73227]
[1723912344001,2.311,2617.2,2616.8,2.86604]
[1723912344338,2.311,2617.2,2616.9,2.86597]
[1723912345896,2.3262,2617.6,2617.1,2.8657]
[1723912346100,3.33230475,2617.6,2617.1,2.8657]
[1723912346544,5.33680226,2617.6,2617.1,2.8657]
[1723912347635,2.3262,2617.5,2616.9,4.17989]
[1723912347846,0.53368023,2617.4,2617.0,2.86586]
[1723912348860,2.3262,2617.3,2617.0,2.86586]
[1723912349635,2.3262,2617.3,2617.0,5.73168]
[1723912349841,2.3262,2617.3,2617.1,2.86576]
[1723912351109,2.3262,2617.5,2617.1,2.86576]
[1723912353305,4.87197604,2617.6,2617.1,2.86576]
[1723912353599,2.00675604,2617.7,2617.1,1.314]
[1723912353814,2.00675604,2617.8,2617.4,2.86534]
[1723912354080,2.00675604,2617.8,2617.3,5.73103]
[1723912355379,2.00675604,2617.8,2617.4,2.86538]
[1723912356259,2.00675604,2617.8,2617.5,2.86532]
[1723912356495,4.33295604,2617.9,2617.5,4.17925]
[1723912356787,2.00640436,2618.0,2617.6,2.86516]
[1723912357171,2.00640436,2617.9,2617.6,2.86516]
[1723912357495,2.00640436,2618.0,2617.6,2.86516]
[1723912358056,2.00640436,2618.0,2617.5,5.73051]
[1723912358252,2.00640436,2618.0,2617.5,5.73052]
[1723912358459,2.00640436,2618.0,2617.5,2.86525]
[1723912358658,2.00640436,2618.0,2617.5,5.73052]
[1723912358858,2.00640436,2618.0,2617.5,2.86525]
[1723912359081,2.00640436,2618.0,2617.5,5.73052]
[1723912359670,2.00640436,2618.0,2617.5,2.86525]
[1723912360560,2.00640436,2618.0,2617.5,5.73052]
[1723912360962,2.00640436,2618.0,2617.6,2.86519]
[1723912361262,2.00592005,2618.0,2617.6,2.86519]
[1723912361577,2.00592005,2618.0,2617.5,2.86525]
[1723912361780,2.00592005,2618.0,2617.5,5.73051]
[1723912361985,2.00592005,2618.0,2617.5,2.86525]
[1723912362995,8.48571005,2618.1,2617.6,2.8652]
[1723912363354,10.90044346,2618.1,2617.6,2.8652]
[1723912363560,2.00592005,2618.0,2617.6,2.8652]
[1723912364070,10.90044346,2618.1,2617.6,2.8652]
[1723912364384,10.90044346,2618.1,2617.5,2.86532]
[1723912364385,2.00592005,2618.0,2617.5,2.86532]
[1723912364694,3.8349644,2618.0,2617.5,5.73064]
[1723912364875,2.00592005,2618.0,2617.5,5.73064]
[1723912365270,11.75927341,2618.1,2617.5,2.86532]
[1723912365494,3.92032677,2618.0,2617.5,2.86532]
[1723912366740,1.91492734,2618.0,2617.5,2.86532]
[1723912367202,6.78511677,2618.0,2617.5,2.86532]
[1723912367371,2.4972,2617.9,2617.4,2.86543]
[1723912367702,2.86501,2617.8,2617.3,2.86546]
[1723912367887,2.74507309,2617.7,2617.1,5.18958]
[1723912368096,2.4972,2617.6,2617.2,2.8656]
[1723912368805,2.4972,2617.6,2617.3,2.86552]
[1723912369892,2.74507309,2617.7,2617.3,5.731]
[1723912370195,2.74507309,2617.7,2617.4,2.86543]
[1723912374082,2.74507309,2617.7,2617.5,2.86532]
[1723912378030,2.2928,2617.6,2617.3,2.86548]
[1723912378229,2.2928,2617.6,2617.3,2.86545]
[1723912378389,2.74507309,2617.7,2617.4,2.86542]
[1723912380928,2.74507309,2617.7,2617.3,2.86551]
[1723912382237,2.74507309,2617.7,2617.2,5.7311]
[1723912382607,2.74507309,2617.7,2617.3,2.86554]
[1723912383005,2.4853,2617.6,2617.0,2.86581]
[1723912383232,5.35059,2617.6,2617.0,2.86579]
[1723912383441,2.4853,2617.4,2616.8,2.866]
[1723912383663,2.86556,2617.3,2616.8,2.866]
[1723912384751,2.4853,2617.2,2616.7,2.86616]
[1723912384908,2.86579,2617.1,2616.5,2.86641]
[1723912385238,2.4853,2617.0,2616.5,2.86641]
[1723912385731,2.4853,2617.0,2616.4,2.86645]
[1723912385910,2.327,2616.8,2616.4,5.73292]
[1723912386328,2.327,2616.8,2616.4,2.86645]
[1723912387055,5.19314,2616.8,2616.2,2.86668]
[1723912387852,2.86621,2616.7,2616.2,2.86668]
[1723912388054,2.327,2616.6,2616.2,2.86668]
[1723912388951,5.19333,2616.6,2616.1,1.314]
[1723912389652,5.19333,2616.6,2616.1,4.18083]
[1723912392303,2.327,2616.6,2616.1,7.04766]
[1723912392745,2.327,2616.6,2616.1,4.18083]
[1723912395602,5.19332,2616.6,2616.1,4.18083]
[1723912395809,2.4478,2616.5,2615.9,2.867]
[1723912396156,2.4478,2616.5,2616.1,2.86679]
[1723912396465,2.4478,2616.5,2616.0,2.86694]
[1723912396606,2.4478,2616.5,2616.1,2.86684]
[1723912399315,3.110602,2616.5,2616.1,2.86684]
[1723912400444,3.110602,2616.5,2616.0,2.86689]
[1723912400746,3.110602,2616.5,2615.8,2.86714]
[1723912400747,2.4546,2616.1,2615.8,2.86718]
[1723912400966,3.118127,2616.1,2615.8,2.86718]
[1723912401248,2.4546,2616.1,2615.8,2.86718]
[1723912402419,2.4546,2616.1,2615.8,2.86713]
[1723912402623,2.4546,2616.1,2615.9,2.86701]
[1723912402949,2.86625,2616.7,2616.1,2.86685]
[1723912402950,2.4546,2616.4,2616.1,2.86685]
[1723912403450,2.4546,2616.4,2615.9,2.86701]
[1723912403451,2.4546,2616.4,2615.9,5.73398]
[1723912403654,2.4546,2616.4,2616.0,2.86695]
[1723912405169,2.4546,2616.4,2615.9,5.73399]
[1723912406319,2.4546,2616.4,2616.1,2.86678]
[1723912406525,2.4546,2616.4,2616.2,2.86666]
[1723912410748,2.4546,2616.4,2616.3,2.86664]
[1723912411055,2.4546,2616.7,2616.3,2.86664]
[1723912411967,5.32081,2616.7,2616.1,2.86677]
[1723912412163,0.53040391,2616.6,2616.1,2.86677]
[1723912412981,0.53040391,2616.6,2616.2,2.86672]
[1723912416974,2.4546,2616.3,2615.8,2.86718]
[1723912417146,5.16517309,2616.2,2615.8,2.86718]
[1723912417548,5.16517309,2616.2,2615.7,2.86726]
[1723912418077,5.16517309,2616.2,2615.7,5.7345]
[1723912418541,5.16517309,2616.2,2615.7,2.86724]
[1723912418875,5.16517309,2616.2,2615.7,5.73445]
[1723912419240,5.16517309,2616.2,2615.8,2.86719]
[1723912420080,2.79367309,2616.1,2615.8,2.86719]
[1723912420779,2.499,2616.0,2615.7,2.86721]
[1723912420985,2.79367309,2615.9,2615.7,2.86721]
[1723912421552,2.79367309,2615.9,2615.6,2.8674]
[1723912421882,2.79367309,2615.9,2615.7,2.86729]
[1723912422091,2.79367309,2615.9,2615.7,5.73453]
[1723912422863,2.79367309,2615.9,2615.7,2.86724]
[1723912423592,1.314,2615.8,2614.7,1.59353939]
[1723912423808,1.314,2615.8,2614.0,2.3443]
[1723912423809,2.499,2614.9,2614.0,2.3443]
[1723912423982,1.314,2614.5,2614.0,2.3443]
[1723912424160,2.499,2614.9,2614.1,2.86903]
[1723912424689,2.499,2614.9,2614.3,2.86875]
[1723912424875,2.499,2614.9,2614.3,2.86882]
[1723912425077,5.36719,2614.9,2614.3,2.86882]
[1723912425303,2.86828,2614.8,2614.3,2.86882]
[1723912425468,5.36719,2614.9,2614.2,2.86893]
[1723912425882,2.86831,2614.8,2614.2,2.86893]
[1723912426281,5.36719,2614.9,2614.2,2.86893]
[1723912426979,5.36719,2614.9,2614.3,2.86883]
[1723912427387,2.499,2614.9,2614.0,2.3443]
[1723912427703,2.86779,2615.3,2614.6,2.86843]
[1723912427704,2.46,2615.2,2614.6,2.86843]
[1723912428301,5.860689,2615.2,2614.6,2.86843]
[1723912429719,2.46,2615.2,2614.6,2.86843]
[1723912429889,2.46,2615.2,2614.6,5.73686]
[1723912430097,2.46,2615.2,2614.6,5.73687]
[1723912430286,5.32789,2615.2,2614.6,2.86843]
[1723912432218,2.46,2615.2,2614.6,5.73686]
[1723912433728,3.33102404,2615.7,2614.2,3.161]
[1723912433729,2.46,2615.4,2614.9,2.86807]
[1723912433959,2.46,2615.4,2615.1,2.86795]
[1723912434083,2.46,2615.6,2615.1,2.86795]
[1723912434283,5.32748,2615.6,2614.9,2.86807]
[1723912434484,2.86754,2615.5,2614.9,5.73618]
[1723912434723,3.27210231,2615.6,2615.0,2.86804]
[1723912435538,6.13955231,2615.6,2615.0,2.86804]
[1723912436644,2.86752,2615.5,2615.0,2.86804]
[1723912437683,2.86782,2615.3,2614.6,2.86842]
[1723912437989,2.86782,2615.3,2614.6,5.73686]
[1723912437990,5.23615,2615.2,2614.6,5.73686]
[1723912438409,5.23621,2615.2,2614.6,2.86842]
[1723912439095,2.3683,2615.2,2614.7,2.86832]
[1723912440901,2.3798,2615.7,2615.2,2.86778]
[1723912441220,2.3798,2615.7,2615.3,2.86773]
[1723912441422,0.51734731,2615.6,2615.2,2.86778]
[1723912441623,2.3798,2615.7,2615.3,2.86768]
[1723912442024,2.3798,2615.7,2615.2,2.86778]
[1723912442393,2.3798,2615.7,2615.3,2.86772]
[1723912443099,2.3798,2615.7,2615.1,2.86785]
[1723912443312,3.18386731,2615.7,2615.2,2.86783]
[1723912443490,3.18386731,2615.7,2615.3,2.86773]
[1723912444431,3.18386731,2615.7,2615.2,2.86776]
[1723912444432,0.88225843,2615.6,2615.2,2.86776]
[1723912445092,0.88225843,2615.6,2614.8,5.26395]
[1723912445093,2.86769,2615.4,2614.8,2.86822]
[1723912445296,3.76741284,2615.4,2614.8,2.86822]
[1723912446062,3.76741284,2615.4,2614.9,2.86815]
[1723912446213,5.24762,2615.3,2614.7,2.86839]
[1723912446399,5.24762,2615.3,2614.6,2.86843]
[1723912446400,5.24766,2615.2,2614.6,2.86843]
[1723912446594,5.24766,2615.2,2614.6,5.73687]
[1723912446922,5.24766,2615.2,2614.6,2.86843]
[1723912447104,6.09686913,2615.2,2614.6,2.86843]
[1723912447306,6.09686913,2615.2,2614.7,2.86833]
[1723912448521,6.09686913,2615.2,2614.6,2.86843]
[1723912449839,6.09686913,2615.2,2614.6,5.73688]
[1723912450220,6.09686913,2615.2,2614.1,5.3957]
[1723912450221,2.86813,2615.0,2614.4,5.73727]
[1723912450421,5.73626,2615.0,2614.4,2.86863]
[1723912450736,3.02716104,2615.1,2614.7,2.86838]
[1723912450909,2.3798,2615.1,2614.7,2.86838]
[1723912452211,2.3798,2615.1,2614.5,2.3957]
[1723912452212,2.3798,2615.4,2615.0,2.86797]
[1723912454506,2.3798,2615.4,2615.0,5.73597]
[1723912454826,2.3798,2615.4,2615.0,2.86797]
[1723912456436,3.191273,2615.4,2614.8,2.86821]
[1723912456641,2.86774,2615.3,2614.6,2.86846]
[1723912457569,5.24743,2615.4,2614.8,2.86823]
[1723912457937,2.86774,2615.3,2614.8,2.86823]
[1723912458135,8.639863,2615.4,2614.8,2.86822]
[1723912458572,5.772173,2615.4,2614.8,5.73645]
[1723912458784,0.8639863,2615.3,2614.8,2.86822]
[1723912459379,5.24743,2615.4,2614.9,2.86815]
[1723912460072,2.3798,2615.4,2615.0,2.86805]
[1723912460677,3.191279,2615.4,2615.0,2.86805]
[1723912461944,3.191279,2615.4,2615.0,2.86801]
[1723912462343,2.3798,2615.4,2614.7,5.36658]
[1723912462543,2.2889,2615.6,2614.9,5.36633]
[1723912462862,2.79367309,2615.8,2615.4,2.86756]
[1723912462863,5.08257309,2615.8,2615.4,2.86756]
[1723912463072,5.08257309,2615.8,2615.0,3.41805]
[1723912463073,6.97568149,2615.8,2615.2,2.86776]
[1723912463274,2.2889,2615.6,2615.2,2.86776]
[1723912463477,2.2889,2615.6,2615.2,5.73555]
[1723912463784,2.2889,2615.6,2615.2,5.73554]
[1723912464250,5.08257309,2615.8,2615.5,2.86745]
[1723912464455,5.08257309,2615.8,2615.4,2.86756]
[1723912464658,0.50825731,2615.7,2615.4,2.86756]
[1723912465080,0.50825731,2615.7,2615.2,2.86774]
[1723912465308,0.50825731,2615.7,2614.9,2.4982]
[1723912465309,3.37562731,2615.7,2615.1,2.86795]
[1723912465605,3.37562731,2615.7,2615.1,5.73584]
[1723912465909,1.13254004,2615.6,2615.1,5.73584]
[1723912466607,3.37562731,2615.7,2615.1,5.73584]
[1723912466608,0.50825731,2615.7,2615.1,2.86789]
[1723912467123,0.50825731,2615.7,2615.3,2.86773]
[1723912469610,4.97412821,2615.7,2615.2,2.86782]
[1723912469789,2.2889,2615.5,2615.2,2.86782]
[1723912470131,2.2889,2615.5,2615.3,2.86766]
[1723912472780,3.8874109,2615.7,2615.2,2.86783]
[1723912473137,2.2889,2615.5,2615.0,2.86796]
[1723912473684,2.2889,2615.5,2615.1,2.86789]
[1723912475290,6.3831538,2615.5,2614.9,2.86811]
[1723912475490,6.3831538,2615.5,2615.0,2.86797]
[1723912478024,6.3831538,2615.5,2615.2,1.316]
[1723912478798,7.9816647,2615.5,2615.2,1.316]
[1723912479002,6.3831538,2615.5,2615.2,1.316]
[1723912479922,3.5156238,2615.5,2615.2,1.316]
[1723912480130,2.2889,2615.5,2615.2,1.316]
[1723912480340,2.2889,2615.5,2615.4,1.316]
[1723912486542,3.8837109,2615.7,2615.4,1.316]
[1723912486744,11.78218399,2615.8,2615.6,1.316]
[1723912488163,4.39218399,2615.8,2615.7,5.7346]
[1723912488464,2.79367309,2615.8,2615.7,5.7346]
[1723912488645,7.39,2616.2,2616.0,2.86697]
[1723912488848,1.5985109,2616.2,2616.1,1.316]
[1723912489067,1.5985109,2616.4,2616.2,2.86675]
[1723912489247,1.5985109,2616.4,2616.1,4.18286]
[1723912489248,1.5985109,2616.5,2616.3,1.316]
[1723912489453,3.21313481,2616.5,2616.3,1.316]
[1723912489614,1.5985109,2616.4,2616.1,4.18281]
[1723912489815,2.2852,2616.3,2616.1,4.18281]
[1723912490534,2.2852,2616.3,2616.1,4.18189745]
[1723912490924,2.2852,2616.3,2616.1,1.316]
[1723912491144,4.72018638,2616.3,2615.8,4.18318]
[1723912491349,7.58690638,2616.3,2615.8,1.316]
[1723912491583,1.24598246,2616.2,2615.8,4.18318]
[1723912492180,4.11273246,2616.2,2615.8,1.316]
[1723912492402,2.86686,2616.1,2615.8,1.316]
[1723912492603,0.41128425,2616.0,2615.8,1.316]
[1723912492765,4.11273246,2616.2,2615.8,1.316]
[1723912493847,1.24598246,2616.2,2615.7,2.86723]
[1723912494490,2.2852,2616.3,2615.8,2.86712]
[1723912494690,2.2852,2616.3,2616.0,2.86696]
[1723912495746,4.4650009,2616.5,2616.1,2.86678]
[1723912495747,3.9862109,2616.5,2616.1,2.86678]
[1723912495953,3.37063078,2616.4,2616.1,2.86678]
[1723912497528,3.37063078,2616.4,2615.7,2.4215]
[1723912497529,3.37063078,2616.4,2615.8,2.86712]
[1723912497667,0.90293831,2616.3,2615.9,2.86702]
[1723912498274,0.90293831,2616.3,2615.8,2.86712]
[1723912498530,0.90293831,2616.3,2615.9,2.86707]
[1723912499100,0.90293831,2616.3,2616.0,2.86696]
[1723912500385,3.37063078,2616.4,2616.2,2.86669]
[1723912500587,3.37063078,2616.4,2616.1,2.86684]
[1723912500788,3.37063078,2616.4,2616.1,2.8668]
[1723912501489,3.37063078,2616.4,2616.1,2.86679]
[1723912501876,5.13194695,2616.4,2615.7,2.86722]
[1723912502074,5.13274,2616.3,2615.8,2.86713]
[1723912502285,1.3131297,2616.2,2615.8,2.86713]
[1723912503388,1.3131297,2616.2,2615.7,2.86722]
[1723912503735,2.2661,2616.1,2615.7,2.86722]
[1723912504021,5.13336,2615.8,2615.3,2.86763]
[1723912504188,2.86731,2615.7,2615.2,2.86784]
[1723912504387,2.86731,2615.7,2615.1,2.86788]
[1723912504388,3.82721909,2615.7,2615.1,5.73577]
[1723912504579,3.82721909,2615.7,2615.1,2.86788]
[1723912505417,3.82721909,2615.7,2615.2,2.86784]
[1723912505624,0.60933191,2615.6,2615.2,2.86784]
[1723912507090,0.60933191,2615.6,2615.1,2.86788]
[1723912507295,3.47675191,2615.6,2615.1,2.86788]
[1723912507831,2.2661,2615.5,2615.1,2.86788]
[1723912508504,2.2661,2615.5,2615.2,2.86778]
[1723912511754,2.2661,2615.7,2615.4,2.8676]
[1723912511956,3.93870045,2615.7,2615.4,2.8676]
[1723912512163,3.93870045,2615.7,2615.5,2.8675]
[1723912512459,2.2661,2615.7,2615.5,2.8675]
[1723912513673,4.50920887,2616.0,2615.5,2.8675]
[1723912514117,2.91069797,2616.0,2615.5,2.8675]
[1723912514316,1.47660989,2615.9,2615.5,2.8675]
[1723912514516,1.47660989,2615.9,2615.5,2.86746]
[1723912514914,1.47660989,2615.9,2615.6,2.86735]
[1723912515121,2.2661,2616.0,2615.6,2.86735]
[1723912517521,3.8646109,2616.0,2615.5,2.86746]
[1723912518635,6.7316309,2616.0,2615.5,2.86746]
[1723912519461,1.61256662,2615.9,2615.5,2.86746]
[1723912520646,2.4876,2615.8,2615.4,2.86762]
[1723912521837,2.4876,2615.8,2615.5,2.86751]
[1723912522559,11.8554809,2616.1,2615.5,2.86751]
[1723912522560,7.39,2616.1,2615.7,2.86724]
[1723912522963,7.39,2616.1,2615.5,2.2865]
[1723912523162,7.39,2616.1,2615.7,2.86724]
[1723912523459,7.39,2616.1,2615.8,2.86711]
[1723912524079,2.4876,2616.2,2615.8,2.86711]
[1723912524221,4.0861109,2616.2,2615.8,2.86711]
[1723912525340,2.4876,2616.2,2615.8,2.86711]
[1723912525672,2.4876,2616.2,2615.9,2.86699]
[1723912527543,4.0861109,2616.2,2615.8,2.86716]
[1723912528072,2.4876,2616.2,2615.8,2.86716]
[1723912528375,5.60553809,2616.2,2615.8,2.86716]
[1723912528732,1.51942719,2616.2,2615.8,2.86716]
[1723912528958,1.5985109,2616.3,2615.8,2.86716]
[1723912529143,1.5985109,2616.3,2616.0,2.86695]
[1723912529559,5.85823078,2616.4,2616.0,5.73384]
[1723912529560,7.45674168,2616.4,2616.0,5.73384]
[1723912529738,5.85823078,2616.4,2616.0,5.7338]